fUST/lending_fUST_20240511
["ID","MTS","AMOUNT","RATE_DAILY","PERIOD"]
[326782243,1715358817788,-500.0,0.00054794,120]
[326782244,1715358817809,-500.0,0.00054794,120]
[326782245,1715358817831,-500.0,0.00054794,120]
[326782246,1715358817854,-500.0,0.00054794,120]
[326782247,1715358817876,-500.0,0.00054794,120]
[326782248,1715358817899,-500.0,0.00054794,120]
[326782249,1715358817921,-500.0,0.00054794,120]
[326782250,1715358817948,-500.0,0.00054794,120]
[326782251,1715358817970,-500.0,0.00054794,120]
[326782252,1715358817993,-500.0,0.00054794,120]
[326782253,1715358818018,-500.0,0.00054794,120]
[326782254,1715358818040,-500.0,0.00054794,120]
[326782255,1715358818061,-545.56974313,0.00054794,120]
[326782256,1715358818084,-500.0,0.00054794,120]
[326782257,1715358818107,-500.0,0.00054794,120]
[326782258,1715358818129,-500.0,0.00054794,120]
[326782259,1715358818152,-1652.13,0.00054794,120]
[326782260,1715358818176,-507.00396518,0.00054794,120]
[326782261,1715358818199,-204.17743212,0.00054794,120]
[326782262,1715358818220,-500.0,0.00054794,120]
[326782263,1715358818245,-1019.42,0.00054794,120]
[326782264,1715358818266,-500.0,0.00054794,120]
[326782265,1715358818289,-500.0,0.00054794,120]
[326782266,1715358818314,-439.77485881,0.00054794,120]
[326782267,1715358818336,-500.0,0.00054794,120]
[326782268,1715358818360,-500.0,0.00054794,120]
[326782269,1715358818382,-500.0,0.00054794,120]
[326782270,1715358818403,-561.05,0.00054794,120]
[326782271,1715358818426,-500.0,0.00054794,120]
[326782272,1715358818452,-614.42,0.00054794,120]
[326782273,1715358818474,-500.0,0.00054794,120]
[326782274,1715358818497,-847.26,0.00054794,120]
[326782275,1715358818631,-500.0,0.00054794,120]
[326782276,1715358818657,-500.0,0.00054794,120]
[326782277,1715358818682,-1060.95,0.00054794,120]
[326782278,1715358818705,-500.0,0.00054794,120]
[326782279,1715358818726,-500.0,0.00054794,120]
[326782280,1715358818749,-500.0,0.00054794,120]
[326782281,1715358818771,-500.0,0.00054794,120]
[326782282,1715358818792,-187.83627791,0.00054794,120]
[326782283,1715358818814,-500.0,0.00054794,120]
[326782284,1715358818838,-608.63802122,0.00054794,120]
[326782285,1715358818877,-500.0,0.00054794,120]
[326782286,1715358818903,-500.0,0.00054794,120]
[326782287,1715358818928,-500.0,0.00054794,120]
[326782288,1715358818955,-500.0,0.00054794,120]
[326782289,1715358818983,-330.75008115,0.00054794,120]
[326782290,1715358819008,-500.0,0.00054794,120]
[326782291,1715358819035,-500.0,0.00054794,120]
[326782292,1715358819063,-3993.78,0.00054794,120]
[326782293,1715358819089,-500.0,0.00054794,120]
[326782294,1715358819118,-500.0,0.00054794,120]
[326782295,1715358819156,-500.0,0.00054794,120]
[326782296,1715358819186,-500.0,0.00054794,120]
[326782297,1715358819213,-500.0,0.00054794,120]
[326782298,1715358819238,-500.0,0.00054794,120]
[326782299,1715358819264,-768.86,0.00054794,120]
[326782300,1715358819290,-500.0,0.00054794,120]
[326782301,1715358819314,-500.0,0.00054794,120]
[326782302,1715358819341,-1979.81,0.00054794,120]
[326782303,1715358819368,-503.73,0.00054794,120]
[326782304,1715358819395,-851.16,0.00054794,120]
[326782305,1715358819422,-500.0,0.00054794,120]
[326782306,1715358819453,-500.0,0.00054794,120]
[326782307,1715358819482,-500.0,0.00054794,120]
[326782308,1715358819509,-500.0,0.00054794,120]
[326782309,1715358819535,-500.0,0.00054794,120]
[326782310,1715358819560,-616.93796235,0.00054794,120]
[326782311,1715358819584,-500.0,0.00054794,120]
[326782312,1715358819609,-583.21,0.00054794,120]
[326782313,1715358819634,-500.0,0.00054794,120]
[326782314,1715358819659,-500.0,0.00054794,120]
[326782315,1715358819684,-813.79,0.00054794,120]
[326782316,1715358819712,-510.36425845,0.00054794,120]
[326782317,1715358819737,-789.76,0.00054794,120]
[326782318,1715358819762,-500.0,0.00054794,120]
[326782319,1715358819786,-500.0,0.00054794,120]
[326782320,1715358819814,-500.0,0.00054794,120]
[326782321,1715358819839,-500.0,0.00054794,120]
[326782322,1715358819864,-500.0,0.00054794,120]
[326782323,1715358819889,-1021.33,0.00054794,120]
[326782324,1715358819914,-511.5,0.00054794,120]
[326782325,1715358819941,-500.0,0.00054794,120]
[326782326,1715358819974,-500.0,0.00054794,120]
[326782327,1715358820002,-1039.7,0.00054794,120]
[326782328,1715358820028,-500.0,0.00054794,120]
[326782329,1715358820055,-500.0,0.00054794,120]
[326782330,1715358820080,-500.0,0.00054794,120]
[326782331,1715358820104,-500.0,0.00054794,120]
[326782332,1715358820128,-500.0,0.00054794,120]
[326782333,1715358820153,-500.0,0.00054794,120]
[326782334,1715358820179,-500.0,0.00054794,120]
[326782335,1715358820208,-209.84729948,0.00054794,120]
[326782336,1715358820235,-500.0,0.00054794,120]
[326782337,1715358820259,-500.0,0.00054794,120]
[326782338,1715358820283,-500.0,0.00054794,120]
[326782339,1715358820307,-500.0,0.00054794,120]
[326782340,1715358820333,-500.0,0.00054794,120]
[326782341,1715358820358,-500.0,0.00054794,120]
[326782342,1715358820388,-500.0,0.00054794,120]
[326782343,1715358820412,-500.0,0.00054794,120]
[326782344,1715358820438,-500.0,0.00054794,120]
[326782345,1715358820467,-500.0,0.00054794,120]
[326782346,1715358820491,-511.98237562,0.00054794,120]
[326782347,1715358820515,-500.0,0.00054794,120]
[326782348,1715358820539,-247.95359707,0.00054794,120]
[326782349,1715358820562,-500.0,0.00054794,120]
[326782350,1715358820586,-500.0,0.00054794,120]
[326782351,1715358820609,-500.0,0.00054794,120]
[326782352,1715358820632,-825.16,0.00054794,120]
[326782353,1715358820655,-500.0,0.00054794,120]
[326782354,1715358820792,-500.0,0.00054794,120]
[326782355,1715358820815,-500.0,0.00054794,120]
[326782356,1715358820838,-559.75,0.00054794,120]
[326782357,1715358820860,-500.0,0.00054794,120]
[326782358,1715358820882,-500.0,0.00054794,120]
[326782359,1715358820905,-500.0,0.00054794,120]
[326782360,1715358820928,-500.0,0.00054794,120]
[326782361,1715358820959,-500.0,0.00054794,120]
[326782362,1715358821004,-500.0,0.00054794,120]
[326782363,1715358821033,-500.0,0.00054794,120]
[326782364,1715358821061,-511.31767147,0.00054794,120]
[326782365,1715358821088,-500.0,0.00054794,120]
[326782366,1715358821114,-649.02,0.00054794,120]
[326782367,1715358821148,-500.0,0.00054794,120]
[326782368,1715358821173,-500.0,0.00054794,120]
[326782369,1715358821202,-500.0,0.00054794,120]
[326782370,1715358821241,-500.0,0.00054794,120]
[326782371,1715358821267,-500.0,0.00054794,120]
[326782372,1715358821291,-500.0,0.00054794,120]
[326782373,1715358821315,-500.0,0.00054794,120]
[326782374,1715358821340,-500.0,0.00054794,120]
[326782375,1715358821364,-506.84924907,0.00054794,120]
[326782376,1715358821389,-1971.69,0.00054794,120]
[326782377,1715358821414,-1971.69,0.00054794,120]
[326782378,1715358821441,-1971.69,0.00054794,120]
[326782379,1715358821469,-1971.69,0.00054794,120]
[326782380,1715358821495,-1971.69,0.00054794,120]
[326782381,1715358821522,-500.0,0.00054794,120]
[326782382,1715358821548,-1971.69,0.00054794,120]
[326782383,1715358821572,-1971.69,0.00054794,120]
[326782384,1715358821597,-1971.69,0.00054794,120]
[326782385,1715358821623,-1971.69,0.00054794,120]
[326782386,1715358821647,-1971.69,0.00054794,120]
[326782387,1715358821671,-1971.69,0.00054794,120]
[326782388,1715358821696,-1971.69,0.00054794,120]
[326782389,1715358821721,-1971.69,0.00054794,120]
[326782390,1715358821747,-1971.69,0.00054794,120]
[326782391,1715358821770,-500.0,0.00054794,120]
[326782392,1715358821797,-1971.69,0.00054794,120]
[326782393,1715358821821,-1971.69,0.00054794,120]
[326782394,1715358821845,-500.0,0.00054794,120]
[326782395,1715358821871,-500.0,0.00054794,120]
[326782396,1715358821895,-500.0,0.00054794,120]
[326782397,1715358821920,-1484.19,0.00054794,120]
[326782398,1715358821952,-500.0,0.00054794,120]
[326782399,1715358821990,-500.0,0.00054794,120]
[326782400,1715358822018,-510.34401642,0.00054794,120]
[326782401,1715358822044,-500.0,0.00054794,120]
[326782402,1715358822072,-562.66,0.00054794,120]
[326782403,1715358822099,-1016.99,0.00054794,120]
[326782404,1715358822125,-500.0,0.00054794,120]
[326782405,1715358822152,-500.0,0.00054794,120]
[326782406,1715358822178,-4530.57,0.00054794,120]
[326782407,1715358822207,-3957.23,0.00054794,120]
[326782408,1715358822238,-1000.0,0.00054794,120]
[326782409,1715358822267,-500.0,0.00054794,120]
[326782410,1715358822296,-500.0,0.00054794,120]
[326782411,1715358822323,-500.0,0.00054794,120]
[326782412,1715358822350,-557.11,0.00054794,120]
[326782413,1715358822377,-501.63984213,0.00054794,120]
[326782414,1715358822403,-500.0,0.00054794,120]
[326782415,1715358822429,-500.0,0.00054794,120]
[326782416,1715358822458,-500.0,0.00054794,120]
[326782417,1715358822484,-500.0,0.00054794,120]
[326782418,1715358822509,-500.0,0.00054794,30]
[326782419,1715358822537,-851.86,0.00054794,120]
[326782420,1715358822563,-500.0,0.00054794,120]
[326782421,1715358822589,-420.27428809,0.00054794,120]
[326782422,1715358822615,-500.0,0.00054794,120]
[326782423,1715358822640,-500.0,0.00054794,120]
[326782424,1715358822667,-500.0,0.00054794,120]
[326782425,1715358822696,-500.0,0.00054794,120]
[326782426,1715358822726,-500.0,0.00054794,120]
[326782427,1715358822748,-500.0,0.00054794,120]
[326782428,1715358822775,-500.0,0.00054794,120]
[326782429,1715358822802,-500.0,0.00054794,120]
[326782430,1715358822957,-500.0,0.00054794,120]
[326782431,1715358822985,-500.0,0.00054794,120]
[326782432,1715358823013,-10440.62,0.00054794,120]
[326782433,1715358823042,-500.0,0.00054794,120]
[326782434,1715358823067,-500.0,0.00054794,120]
[326782435,1715358823092,-500.0,0.00054794,120]
[326782436,1715358823119,-500.0,0.00054794,120]
[326782437,1715358823143,-643.61,0.00054794,120]
[326782438,1715358823170,-500.0,0.00054794,30]
[326782439,1715358823196,-500.0,0.00054794,120]
[326782440,1715358823227,-500.0,0.00054794,120]
[326782441,1715358823253,-671.59,0.00054794,120]
[326782442,1715358823278,-500.0,0.00054794,120]
[326782443,1715358823305,-434.84710876,0.00054794,120]
[326782444,1715358823337,-500.0,0.00054794,120]
[326782445,1715358823364,-506.90754559,0.00054794,120]
[326782446,1715358823389,-421.60686864,0.00054794,120]
[326782447,1715358823415,-1500.0,0.00054794,120]
[326782448,1715358823439,-605.51120205,0.00054794,120]
[326782449,1715358823465,-1164.56,0.00054794,120]
[326782450,1715358823488,-172.43488478,0.00054794,120]
[326782451,1715358823515,-500.0,0.00054794,120]
[326782452,1715358823538,-500.0,0.00054794,120]
[326782453,1715358823562,-505.35766907,0.00054794,120]
[326782454,1715358823586,-500.0,0.00054794,120]
[326782455,1715358823612,-582.01,0.00054794,120]
[326782456,1715358823637,-500.0,0.00054794,120]
[326782457,1715358823662,-527.79,0.00054794,120]
[326782458,1715358823686,-500.0,0.00054794,120]
[326782459,1715358823711,-500.0,0.00054794,120]
[326782460,1715358823735,-500.0,0.00054794,120]
[326782461,1715358823760,-500.0,0.00054794,120]
[326782462,1715358823786,-1468.55,0.00054794,120]
[326782463,1715358823811,-500.0,0.00054794,120]
[326782464,1715358823836,-716.7,0.00054794,120]
[326782465,1715358823860,-436.51452883,0.00054794,120]
[326782466,1715358823886,-503.57390441,0.00054794,120]
[326782467,1715358823911,-500.0,0.00054794,120]
[326782468,1715358823934,-500.0,0.00054794,120]
[326782469,1715358823967,-523.24,0.00054794,120]
[326782470,1715358823992,-500.45098851,0.00054794,120]
[326782471,1715358824024,-500.0,0.00054794,120]
[326782472,1715358824057,-500.0,0.00054794,120]
[326782473,1715358824083,-500.0,0.00054794,120]
[326782474,1715358824109,-500.0,0.00054794,120]
[326782475,1715358824136,-6335.96,0.00054794,120]
[326782476,1715358824165,-5335.37,0.00054794,120]
[326782477,1715358824190,-500.0,0.00054794,120]
[326782478,1715358824215,-643.8774915,0.00054794,120]
[326782479,1715358824243,-500.0,0.00054794,120]
[326782480,1715358824276,-818.69,0.00054794,120]
[326782481,1715358824301,-500.0,0.00054794,120]
[326782482,1715358824339,-500.0,0.00054794,120]
[326782483,1715358824364,-500.0,0.00054794,120]
[326782484,1715358824396,-2646.58,0.00054794,120]
[326782485,1715358824422,-500.0,0.00054794,120]
[326782486,1715358824448,-500.0,0.00054794,120]
[326782487,1715358824481,-500.0,0.00054794,120]
[326782488,1715358824507,-519.52,0.00054794,120]
[326782489,1715358824532,-500.0,0.00054794,120]
[326782490,1715358824557,-500.0,0.00054794,120]
[326782491,1715358824582,-4785.04,0.00054794,120]
[326782492,1715358824607,-315.49007819,0.00054794,120]
[326782493,1715358824631,-563.86,0.00054794,120]
[326782494,1715358824658,-2518.41,0.00054794,120]
[326782495,1715358824683,-755.97,0.00054794,120]
[326782496,1715358824708,-500.0,0.00054794,120]
[326782497,1715358824736,-569.44,0.00054794,120]
[326782498,1715358824762,-748.0,0.00054794,120]
[326782499,1715358824786,-523.59467799,0.00054794,120]
[326782500,1715358824810,-791.97,0.00054794,120]
[326782501,1715358824837,-500.0,0.00054794,120]
[326782502,1715358824862,-500.0,0.00054794,120]
[326782503,1715358824995,-1201.19,0.00054794,120]
[326782504,1715358825023,-507.23212012,0.00054794,120]
[326782505,1715358825049,-500.0,0.00054794,120]
[326782506,1715358825074,-829.13,0.00054794,120]
[326782507,1715358825100,-505.25380694,0.00054794,120]
[326782508,1715358825124,-500.0,0.00054794,120]
[326782509,1715358825150,-500.0,0.00054794,120]
[326782510,1715358825176,-500.0,0.00054794,120]
[326782511,1715358825203,-500.0,0.00054794,120]
[326782512,1715358825228,-4362.25,0.00054794,120]
[326782513,1715358825255,-500.0,0.00054794,120]
[326782514,1715358825280,-2085.59,0.00054794,120]
[326782515,1715358825304,-500.0,0.00054794,120]
[326782516,1715358825329,-500.0,0.00054794,120]
[326782517,1715358825354,-500.0,0.00054794,120]
[326782518,1715358825379,-500.0,0.00054794,120]
[326782519,1715358825404,-500.0,0.00054794,120]
[326782520,1715358825431,-500.0,0.00054794,120]
[326782521,1715358825459,-500.0,0.00054794,120]
[326782522,1715358825483,-500.0,0.00054794,120]
[326782523,1715358825509,-500.0,0.00054794,120]
[326782524,1715358825533,-500.0,0.00054794,120]
[326782525,1715358825559,-500.0,0.00054794,120]
[326782526,1715358825584,-500.0,0.00054794,120]
[326782527,1715358825609,-500.0,0.00054794,120]
[326782528,1715358825633,-500.0,0.00054794,120]
[326782529,1715358825657,-500.0,0.00054794,120]
[326782530,1715358825682,-500.0,0.00054794,120]
[326782531,1715358825709,-509.33553572,0.00054794,120]
[326782532,1715358825733,-500.0,0.00054794,120]
[326782533,1715358825759,-500.0,0.00054794,120]
[326782534,1715358825783,-619.47314068,0.00054794,120]
[326782535,1715358825808,-500.0,0.00054794,120]
[326782536,1715358825832,-500.0,0.00054794,120]
[326782537,1715358825858,-503.09,0.00054794,120]
[326782538,1715358825884,-1096.81,0.00054794,120]
[326782539,1715358825909,-500.0,0.00054794,120]
[326782540,1715358825932,-500.0,0.00054794,120]
[326782541,1715358825960,-500.0,0.00054794,120]
[326782542,1715358825989,-1000.0,0.00054794,120]
[326782543,1715358826015,-500.0,0.00054794,120]
[326782544,1715358826039,-500.0,0.00054794,120]
[326782545,1715358826064,-500.0,0.00054794,120]
[326782546,1715358826088,-237.13442369,0.00054794,120]
[326782547,1715358826111,-500.0,0.00054794,120]
[326782548,1715358826134,-165.97929624,0.00054794,120]
[326782549,1715358826160,-7400.54,0.00054794,120]
[326782550,1715358826185,-500.0,0.00054794,120]
[326782551,1715358826210,-500.0,0.00054794,120]
[326782552,1715358826234,-977.43,0.00054794,120]
[326782553,1715358826258,-500.0,0.00054794,120]
[326782554,1715358826285,-500.0,0.00054794,120]
[326782555,1715358826309,-99042.86535318,0.00054794,120]
[326782556,1715358826335,-500.0,0.00054794,120]
[326782557,1715358826359,-500.0,0.00054794,120]
[326782558,1715358826382,-500.0,0.00054794,120]
[326782559,1715358826407,-500.0,0.00054794,120]
[326782560,1715358826431,-500.0,0.00054794,120]
[326782561,1715358826457,-500.0,0.00054794,120]
[326782562,1715358826481,-500.0,0.00054794,120]
[326782563,1715358826504,-683.16,0.00054794,120]
[326782564,1715358826527,-983.18,0.00054794,120]
[326782565,1715358826552,-500.0,0.00054794,120]
[326782566,1715358826577,-500.0,0.00054794,120]
[326782567,1715358826601,-500.0,0.00054794,120]
[326782568,1715358826626,-500.0,0.00054794,120]
[326782569,1715358826652,-500.0,0.00054794,120]
[326782570,1715358826676,-500.0,0.00054794,120]
[326782571,1715358826701,-739.58,0.00054794,120]
[326782572,1715358826725,-1307.72,0.00054794,120]
[326782573,1715358826833,-500.0,0.00054794,120]
[326782574,1715358826876,-500.0,0.00054794,120]
[326782575,1715358826900,-500.0,0.00054794,120]
[326782576,1715358826923,-500.0,0.00054794,120]
[326782577,1715358826952,-976.68,0.00054794,120]
[326782578,1715358826976,-500.0,0.00054794,120]
[326782579,1715358827002,-500.0,0.00054794,120]
[326782580,1715358827029,-500.0,0.00054794,120]
[326782581,1715358827054,-500.0,0.00054794,120]
[326782582,1715358827078,-500.0,0.00054794,120]
[326782583,1715358827101,-500.0,0.00054794,120]
[326782584,1715358827124,-500.0,0.00054794,120]
[326782585,1715358827149,-500.0,0.00054794,120]
[326782586,1715358827173,-500.0,0.00054794,120]
[326782587,1715358827198,-500.0,0.00054794,120]
[326782588,1715358827222,-812.96,0.00054794,120]
[326782589,1715358827247,-500.0,0.00054794,120]
[326782590,1715358827271,-545.96,0.00054794,120]
[326782591,1715358827295,-500.0,0.00054794,120]
[326782592,1715358827319,-500.0,0.00054794,120]
[326782593,1715358827344,-1561.81,0.00054794,120]
[326782594,1715358827368,-500.0,0.00054794,120]
[326782595,1715358827392,-500.0,0.00054794,60]
[326782596,1715358827416,-1267.87,0.00054794,120]
[326782597,1715358827440,-506.4359299,0.00054794,120]
[326782598,1715358827465,-500.0,0.00054794,120]
[326782599,1715358827490,-2695.42,0.00054794,120]
[326782600,1715358827515,-500.0,0.00054794,120]
[326782601,1715358827539,-500.0,0.00054794,120]
[326782602,1715358827564,-500.0,0.00054794,120]
[326782603,1715358827589,-500.0,0.00054794,120]
[326782604,1715358827615,-3028.41,0.00054794,120]
[326782605,1715358827640,-600.18,0.00054794,120]
[326782606,1715358827665,-500.0,0.00054794,120]
[326782607,1715358827691,-500.0,0.00054794,120]
[326782608,1715358827717,-500.0,0.00054794,120]
[326782609,1715358827743,-500.0,0.00054794,120]
[326782610,1715358827767,-829.44,0.00054794,120]
[326782611,1715358827792,-760.21,0.00054794,120]
[326782612,1715358827816,-500.0,0.00054794,120]
[326782613,1715358827839,-500.0,0.00054794,120]
[326782614,1715358827863,-500.0,0.00054794,120]
[326782615,1715358827886,-500.0,0.00054794,120]
[326782616,1715358827909,-500.0,0.00054794,120]
[326782617,1715358827933,-500.0,0.00054794,120]
[326782618,1715358827959,-2034.08,0.00054794,120]
[326782619,1715358827986,-1245.99,0.00054794,120]
[326782620,1715358828011,-965.31,0.00054794,120]
[326782621,1715358828038,-500.0,0.00054794,120]
[326782622,1715358828062,-16856.07022502,0.00054794,120]
[326782623,1715358839640,-7195.09682059,0.00035616,15]
[326782624,1715358839664,-155.07184025,0.0004834,10]
[326782625,1715358839690,-155.22474372,0.00054794,20]
[326782626,1715358839714,-500.0,0.00054794,20]
[326782627,1715358839739,-295.94414684,0.00054794,15]
[326782628,1715358839763,-4256.82,0.00054794,21]
[326782629,1715358839789,-12001.34977498,0.00054794,120]
[326782630,1715358839811,-500.0,0.00054794,120]
[326782631,1715358839836,-500.0,0.00054794,120]
[326782632,1715358839859,-2890.34,0.00054794,120]
[326782633,1715358839882,-500.0,0.00054794,120]
[326782634,1715358839905,-500.0,0.00054794,120]
[326782635,1715358839930,-500.0,0.00054794,120]
[326782636,1715358839957,-500.0,0.00054794,120]
[326782637,1715358839982,-500.0,0.00054794,120]
[326782638,1715358840007,-500.0,0.00054794,120]
[326782639,1715358840033,-1779.69,0.00054794,120]
[326782640,1715358840056,-500.0,0.00054794,120]
[326782641,1715358840081,-5078.42,0.00054794,120]
[326782642,1715358840105,-500.0,0.00054794,120]
[326782643,1715358840130,-1223.05,0.00054794,120]
[326782644,1715358840154,-500.0,0.00054794,120]
[326782645,1715358840179,-500.0,0.00054794,120]
[326782646,1715358840204,-500.0,0.00054794,120]
[326782647,1715358840229,-612.83,0.00054794,120]
[326782648,1715358840252,-500.0,0.00054794,120]
[326782649,1715358840276,-520.85109562,0.00054794,120]
[326782650,1715358840403,-500.0,0.00054794,120]
[326782651,1715358840428,-576.65,0.00054794,120]
[326782652,1715358840453,-584.58249498,0.00054794,120]
[326782653,1715358840478,-500.0,0.00054794,120]
[326782654,1715358840503,-500.0,0.00054794,120]
[326782655,1715358840530,-500.0,0.00054794,120]
[326782656,1715358840554,-500.0,0.00054794,120]
[326782657,1715358840578,-500.0,0.00054794,120]
[326782658,1715358840603,-500.0,0.00054794,120]
[326782659,1715358840628,-775.95,0.00054794,120]
[326782660,1715358840654,-500.0,0.00054794,120]
[326782661,1715358840679,-500.0,0.00054794,120]
[326782662,1715358840706,-522.35,0.00054794,120]
[326782663,1715358840733,-2671.23,0.00054794,120]
[326782664,1715358840758,-350.00330913,0.00054794,120]
[326782665,1715358840782,-518.86714089,0.00054794,120]
[326782666,1715358840806,-500.0,0.00054794,120]
[326782667,1715358840830,-500.0,0.00054794,120]
[326782668,1715358840854,-500.0,0.00054794,120]
[326782669,1715358840878,-500.0,0.00054794,120]
[326782670,1715358840902,-500.0,0.00054794,120]
[326782671,1715358840926,-500.0,0.00054794,120]
[326782672,1715358840953,-500.0,0.00054794,120]
[326782673,1715358840977,-500.0,0.00054794,120]
[326782674,1715358841003,-3792.35,0.00054794,120]
[326782675,1715358841027,-500.0,0.00054794,120]
[326782676,1715358841053,-500.0,0.00054794,120]
[326782677,1715358841077,-500.0,0.00054794,120]
[326782678,1715358841102,-500.0,0.00054794,120]
[326782679,1715358841851,500.0,0.00054794,120]
[326782680,1715358842309,500.0,0.00054794,120]
[326782681,1715358844920,500.0,0.00054794,120]
[326782682,1715358848861,603.9004193,0.00050448,28]
[326782683,1715358849894,500.0,0.00054794,120]
[326782684,1715358861092,158.72162466,0.00038998,30]
[326782686,1715358987159,25146.71071082,0.00038998,30]
[326782687,1715359029006,230.418329,9.999e-05,2]
[326782688,1715359039296,4172.03804268,0.00038998,30]
[326782689,1715359041171,714.7195409,0.00038998,30]
[326782691,1715359084070,557.0,0.00039088,30]
[326782693,1715359094698,557.0,0.00039088,30]
[326782694,1715359105300,478.28507218,0.00039088,30]
[326782695,1715359115875,557.0,0.00039088,30]
[326782696,1715359132604,1000.0,0.00039088,120]
[326782697,1715359133016,1000.0,0.00039088,120]
[326782698,1715359133345,511.199999,0.00039088,120]
[326782700,1715359248786,154.7215013,9.999e-05,2]
[326782701,1715359260210,521.80523456,9.999e-05,2]
[326782702,1715359261915,527.71870107,9.999e-05,2]
[326782703,1715359296796,718.98711623,9.999e-05,2]
[326782704,1715359309320,484.08142548,9.999e-05,2]
[326782705,1715359316177,412.83760204,9.999e-05,2]
[326782706,1715359322178,194.1642929,9.999e-05,2]
[326782707,1715359432069,568.799999,0.00039127,120]
[326782708,1715359466138,522.19690124,9.999e-05,2]
[326782709,1715359480102,823.90323399,9.999e-05,2]
[326782730,1715359793743,412.83760204,9.999e-05,2]
[326782731,1715359793780,521.80523456,9.999e-05,2]
[326782776,1715359838080,-3057.36000381,0.00015189,2]
[326782778,1715359838089,-549.26882266,0.0001519,2]
[326782780,1715359838098,-412.83760204,0.0001519,2]
[326782782,1715359838107,-383.41572644,0.0001519,2]
[326782784,1715359838117,-3457.70192986,0.00015191,2]
[326782786,1715359838127,-36918.193299,0.00015192,2]
[326782788,1715359838136,-7829.9887596,0.00015297,2]
[326782790,1715359838146,-158.783552,0.0001589,2]
[326782792,1715359838156,-173.013157,0.0001589,2]
[326782794,1715359838165,-339.681675,0.00016322,2]
[326782795,1715359838174,-910.26347868,0.00016775,2]
[326782797,1715359838183,-386.6551991,0.00016775,2]
[326782799,1715359838192,-465.40109803,0.00016873,2]
[326782801,1715359838202,-1894.38518573,0.00016874,2]
[326782802,1715359838211,-41031.31992546,0.00016874,2]
[326782803,1715359838220,-11931.43219904,0.00016875,2]
[326782805,1715359838540,-1507.55998032,0.00016875,2]
[326782806,1715359838552,-11461.00782064,0.00016875,2]
[326782807,1715359838562,-250.0,0.00016949,2]
[326782808,1715359838571,-386.65519908,0.00017784,2]
[326782809,1715359838581,-527.14447183,0.00018142,2]
[326782810,1715359838590,-715.32814818,0.00018142,2]
[326782811,1715359838599,-484.17794058,0.00018142,2]
[326782812,1715359838609,-231.09808535,0.00018142,2]
[326782813,1715359838619,-373.10230351,0.00018142,2]
[326782814,1715359838629,-154.76786673,0.00018143,2]
[326782815,1715359838638,-604.78532662,0.000185,2]
[326782816,1715359838647,-386.65519908,0.00018794,2]
[326782817,1715359838656,-584.6141292,0.00018898,2]
[326782818,1715359838666,-1869.35757111,0.00018898,2]
[326782819,1715359838675,-307.7970432,0.00018898,2]
[326782820,1715359838685,-155.42496717,0.00018898,2]
[326782821,1715359838694,-938.61016356,0.00018898,2]
[326782822,1715359838703,-2748.30159768,0.00018898,2]
[326782823,1715359838713,-205.09992679,0.00018898,2]